﻿Department,Entity, Transaction Date, Expense Type, Expense Area, Supplier Name,Transaction number, Amount
FCDO,CSC,02/06/2023,Scholar Stipend,Award Costs,Scholar,PIN063778/PPY038601,1715.22
FCDO,CSC,02/06/2023,Scholar Allowances,Award Costs,Scholar,PIN063775,794
FCDO,CSC,02/06/2023,Scholar Allowances,Award Costs,Scholar,PIN063775,532
FCDO,CSC,02/06/2023,Scholar Stipend,Award Costs,Scholar,PIN063776,1268.94
FCDO,CSC,02/06/2023,Scholar Stipend,Award Costs,Scholar,PIN063777,2700
FCDO,CSC,09/06/2023,Tuition Fee,Award Costs,University of Stirling,PIN063784,5000
FCDO,CSC,09/06/2023,Secretariat Service Provision,Programme Costs,Public Chairs Forum,PIN063791,1000
FCDO,CSC,09/06/2023,Scholar Engagement,Programme Costs,The University of Edinburgh,PIN063800,960.15
FCDO,CSC,09/06/2023,Award Support Costs,Award Costs,The University of Birmingham,PIN063789,6000
FCDO,CSC,09/06/2023,Tuition Fee,Award Costs,Scholar,PIN063793,9400
FCDO,CSC,09/06/2023,Award Support Costs,Award Costs,Loughborough University,PIN063785,3000
FCDO,CSC,09/06/2023,Tuition Fee,Award Costs,The University of Edinburgh,PIN063786,680
FCDO,CSC,09/06/2023,Award Support Costs,Award Costs,The University of Edinburgh,PIN063787,6500
FCDO,CSC,09/06/2023,Award Support Costs,Award Costs,The University of Edinburgh,PIN063788,2500
FCDO,CSC,09/06/2023,Tuition Fee,Award Costs,University of Newcastle upon Tyne,PIN063795,2400
FCDO,CSC,09/06/2023,Award Support Costs,Award Costs,Loughborough University,PIN063783,4800
FCDO,CSC,09/06/2023,Tuition Fee,Award Costs,University College London Fees,PIN063794,18000
FCDO,CSC,09/06/2023,Alumni Engagement,Programme Costs,TFW Printers,PIN063805,882
FCDO,CSC,09/06/2023,Scholar Allowances,Award Costs,Scholar,PIN063810,533.34
FCDO,CSC,09/06/2023,Scholar Allowances,Award Costs,Scholar,PIN063808,500
FCDO,CSC,09/06/2023,Scholar Allowances,Award Costs,Scholar,PIN063820,566.95
FCDO,CSC,09/06/2023,Scholar Allowances,Award Costs,Scholar,PIN063820,566.95
FCDO,CSC,09/06/2023,Scholar Allowances,Award Costs,Scholar,PIN063821,990.26
FCDO,CSC,09/06/2023,Scholar Allowances,Award Costs,Scholar,PIN063821,990.26
FCDO,CSC,09/06/2023,Scholar Allowances,Award Costs,Scholar,PIN063822,894.13
FCDO,CSC,09/06/2023,Scholar Allowances,Award Costs,Scholar,PIN063815,600
FCDO,CSC,09/06/2023,Scholar Travel,Award Costs,Scholar,PIN063824,1722.77
FCDO,CSC,15/06/2023,Tuition Fee,Award Costs,New College Oxford,PRF000280,-15165
FCDO,CSC,15/06/2023,Tuition Fee,Award Costs,Phoenix Project,PRF000281,-958.46
FCDO,CSC,16/06/2023,Scholar Allowances,Award Costs,Scholar,PIN063890,3699.75
FCDO,CSC,16/06/2023,Scholar Allowances,Award Costs,Scholar,PIN063890,2480.05
FCDO,CSC,19/06/2023,Tuition Fee,Award Costs,Sch Oriental & African Studies,PRF000282,-10667.2
FCDO,CSC,23/06/2023,Tuition Fee,Award Costs,The University of Nottingham,PIN064560,1349
FCDO,CSC,23/06/2023,Tuition Fee,Award Costs,The Open University,PIN064564,63525
FCDO,CSC,23/06/2023,Tuition Fee,Award Costs,The Open University,PIN064564,19539.9
FCDO,CSC,23/06/2023,Tuition Fee,Award Costs,University of Ulster,PIN064562,51198
FCDO,CSC,23/06/2023,Scholar Travel,Award Costs,The University of Edinburgh,PIN064574,745.36
FCDO,CSC,23/06/2023,Scholar Travel,Award Costs,The University of Edinburgh,PIN064574,4644.64
FCDO,CSC,23/06/2023,Tuition Fee,Award Costs,The University of Edinburgh,PIN064574,45000
FCDO,CSC,23/06/2023,Award Support Costs,Award Costs,University of Newcastle upon Tyne,PIN064568,5000
FCDO,CSC,23/06/2023,Alumni Engagement,Programme Costs,Scholar,PIN064578,4023.02
FCDO,CSC,23/06/2023,Alumni Engagement,Programme Costs,Scholar,PIN064578,20115.08
FCDO,CSC,23/06/2023,Alumni Engagement,Programme Costs,Scholar,PIN064578,23701.51
FCDO,CSC,23/06/2023,Award Support Costs,Award Costs,University of Greenwich,PIN064575,5000
FCDO,CSC,23/06/2023,Tuition Fee,Award Costs,Loughborough University,PIN064563,18000
FCDO,CSC,23/06/2023,Tuition Fee,Award Costs,Loughborough University,PIN064566,9000
FCDO,CSC,23/06/2023,Tuition Fee,Award Costs,Loughborough University,PIN064567,18000
FCDO,CSC,23/06/2023,Award Support Costs,Award Costs,The University of Warwick,PIN064565,3000
FCDO,CSC,23/06/2023,Scholar Travel,Award Costs,"St Mary's University, Twickenham, London",PIN064577,1316.12
FCDO,CSC,23/06/2023,Tuition Fee,Award Costs,University of Newcastle upon Tyne,PIN064561,2400
FCDO,CSC,23/06/2023,Engagement,Programme Costs,Scholar,PIN064579,1249.2
FCDO,CSC,23/06/2023,Tuition Fee,Award Costs,University of Stirling,PIN064572,5000
FCDO,CSC,23/06/2023,Tuition Fee,Award Costs,Cardiff University,PIN064576,6280
FCDO,CSC,28/06/2023,Scholar Stipend,Award Costs,Scholar,PIN063891,1885.73
FCDO,CSC,28/06/2023,Scholar Stipend,Award Costs,Scholar,PIN063892,3708
FCDO,CSC,28/06/2023,Scholar Stipend,Award Costs,Scholar,PIN063893,3708
FCDO,CSC,28/06/2023,Scholar Stipend,Award Costs,Scholar,PIN063894,2472
FCDO,CSC,28/06/2023,Scholar Stipend,Award Costs,Scholar,PIN063895,3708
FCDO,CSC,28/06/2023,Scholar Stipend,Award Costs,Scholar,PIN063896,3708
FCDO,CSC,28/06/2023,Scholar Stipend,Award Costs,Scholar,PIN063897,3708
FCDO,CSC,28/06/2023,Scholar Stipend,Award Costs,Scholar,PIN063898,3708
FCDO,CSC,28/06/2023,Scholar Stipend,Award Costs,Scholar,PIN063899,1256.3
FCDO,CSC,28/06/2023,Scholar Stipend,Award Costs,Scholar,PIN063900,3708
FCDO,CSC,28/06/2023,Scholar Stipend,Award Costs,Scholar,PIN063901,3708
FCDO,CSC,28/06/2023,Scholar Stipend,Award Costs,Scholar,PIN063902,1236
FCDO,CSC,28/06/2023,Scholar Stipend,Award Costs,Scholar,PIN063903,3708
FCDO,CSC,28/06/2023,Scholar Stipend,Award Costs,Scholar,PIN063904,4548
FCDO,CSC,28/06/2023,Scholar Stipend,Award Costs,Scholar,PIN063905,2472
FCDO,CSC,28/06/2023,Scholar Stipend,Award Costs,Scholar,PIN063906,2472
FCDO,CSC,28/06/2023,Scholar Stipend,Award Costs,Scholar,PIN063907,3708
FCDO,CSC,28/06/2023,Scholar Stipend,Award Costs,Scholar,PIN063908,4548
FCDO,CSC,28/06/2023,Scholar Stipend,Award Costs,Scholar,PIN063909,3708
FCDO,CSC,28/06/2023,Scholar Stipend,Award Costs,Scholar,PIN063910,3708
FCDO,CSC,28/06/2023,Scholar Stipend,Award Costs,Scholar,PIN063911,4548
FCDO,CSC,28/06/2023,Scholar Stipend,Award Costs,Scholar,PIN063912,1854
FCDO,CSC,28/06/2023,Scholar Stipend,Award Costs,Scholar,PIN063913,3708
FCDO,CSC,28/06/2023,Scholar Stipend,Award Costs,Scholar,PIN063914,3708
FCDO,CSC,28/06/2023,Scholar Stipend,Award Costs,Scholar,PIN063915,3708
FCDO,CSC,28/06/2023,Scholar Stipend,Award Costs,Scholar,PIN063916,1516
FCDO,CSC,28/06/2023,Scholar Stipend,Award Costs,Scholar,PIN063917,2472
FCDO,CSC,28/06/2023,Scholar Stipend,Award Costs,Scholar,PIN063918,3708
FCDO,CSC,28/06/2023,Scholar Stipend,Award Costs,Scholar,PIN063919,3708
FCDO,CSC,28/06/2023,Scholar Stipend,Award Costs,Scholar,PIN063920,3708
FCDO,CSC,28/06/2023,Scholar Stipend,Award Costs,Scholar,PIN063921,3708
FCDO,CSC,28/06/2023,Scholar Stipend,Award Costs,Scholar,PIN063922,3032
FCDO,CSC,28/06/2023,Scholar Stipend,Award Costs,Scholar,PIN063923,1055.8
FCDO,CSC,28/06/2023,Scholar Stipend,Award Costs,Scholar,PIN063924,2274
FCDO,CSC,28/06/2023,Scholar Stipend,Award Costs,Scholar,PIN063925,3708
FCDO,CSC,28/06/2023,Scholar Stipend,Award Costs,Scholar,PIN063926,3032
FCDO,CSC,28/06/2023,Scholar Stipend,Award Costs,Scholar,PIN063927,3708
FCDO,CSC,28/06/2023,Scholar Stipend,Award Costs,Scholar,PIN063928,3708
FCDO,CSC,28/06/2023,Scholar Stipend,Award Costs,Scholar,PIN063929,4548
FCDO,CSC,28/06/2023,Scholar Stipend,Award Costs,Scholar,PIN063930,3708
FCDO,CSC,28/06/2023,Scholar Stipend,Award Costs,Scholar,PIN063931,3708
FCDO,CSC,28/06/2023,Scholar Stipend,Award Costs,Scholar,PIN063932,2048.16
FCDO,CSC,28/06/2023,Scholar Stipend,Award Costs,Scholar,PIN063933,3708
FCDO,CSC,28/06/2023,Scholar Stipend,Award Costs,Scholar,PIN063935,4548
FCDO,CSC,28/06/2023,Scholar Stipend,Award Costs,Scholar,PIN063936,3032
FCDO,CSC,28/06/2023,Scholar Stipend,Award Costs,Scholar,PIN063937,3708
FCDO,CSC,28/06/2023,Scholar Stipend,Award Costs,Scholar,PIN063938,1682.69
FCDO,CSC,28/06/2023,Scholar Stipend,Award Costs,Scholar,PIN063939,4548
FCDO,CSC,28/06/2023,Scholar Stipend,Award Costs,Scholar,PIN063940,3708
FCDO,CSC,28/06/2023,Scholar Stipend,Award Costs,Scholar,PIN063941,3708
FCDO,CSC,28/06/2023,Scholar Stipend,Award Costs,Scholar,PIN063942,3708
FCDO,CSC,28/06/2023,Scholar Stipend,Award Costs,Scholar,PIN063943,3708
FCDO,CSC,28/06/2023,Scholar Stipend,Award Costs,Scholar,PIN063944,3708
FCDO,CSC,28/06/2023,Scholar Stipend,Award Costs,Scholar,PIN063945,1236
FCDO,CSC,28/06/2023,Scholar Stipend,Award Costs,Scholar,PIN063946,1601.47
FCDO,CSC,28/06/2023,Scholar Stipend,Award Costs,Scholar,PIN063947,2472
FCDO,CSC,28/06/2023,Scholar Stipend,Award Costs,Scholar,PIN063948,3708
FCDO,CSC,28/06/2023,Scholar Stipend,Award Costs,Scholar,PIN063949,3708
FCDO,CSC,28/06/2023,Scholar Stipend,Award Costs,Scholar,PIN063950,2097.65
FCDO,CSC,28/06/2023,Scholar Stipend,Award Costs,Scholar,PIN063951,4548
FCDO,CSC,28/06/2023,Scholar Stipend,Award Costs,Scholar,PIN063952,3708
FCDO,CSC,28/06/2023,Scholar Stipend,Award Costs,Scholar,PIN063953,1236
FCDO,CSC,28/06/2023,Scholar Stipend,Award Costs,Scholar,PIN063954,3032
FCDO,CSC,28/06/2023,Scholar Stipend,Award Costs,Scholar,PIN063955,2472
FCDO,CSC,28/06/2023,Scholar Stipend,Award Costs,Scholar,PIN063956,3708
FCDO,CSC,28/06/2023,Scholar Stipend,Award Costs,Scholar,PIN063957,2472
FCDO,CSC,28/06/2023,Scholar Stipend,Award Costs,Scholar,PIN063958,3708
FCDO,CSC,28/06/2023,Scholar Stipend,Award Costs,Scholar,PIN063959,2472
FCDO,CSC,28/06/2023,Scholar Stipend,Award Costs,Scholar,PIN063960,3708
FCDO,CSC,28/06/2023,Scholar Stipend,Award Costs,Scholar,PIN063961,3708
FCDO,CSC,28/06/2023,Scholar Stipend,Award Costs,Scholar,PIN063962,3708
FCDO,CSC,28/06/2023,Scholar Stipend,Award Costs,Scholar,PIN063963,3708
FCDO,CSC,28/06/2023,Scholar Stipend,Award Costs,Scholar,PIN063964,3708
FCDO,CSC,28/06/2023,Scholar Stipend,Award Costs,Scholar,PIN063965,3708
FCDO,CSC,28/06/2023,Scholar Stipend,Award Costs,Scholar,PIN063966,3708
FCDO,CSC,28/06/2023,Scholar Stipend,Award Costs,Scholar,PIN063967,3708
FCDO,CSC,28/06/2023,Scholar Stipend,Award Costs,Scholar,PIN063968,3708
FCDO,CSC,28/06/2023,Scholar Stipend,Award Costs,Scholar,PIN063969,3708
FCDO,CSC,28/06/2023,Scholar Stipend,Award Costs,Scholar,PIN063970,3708
FCDO,CSC,28/06/2023,Scholar Stipend,Award Costs,Scholar,PIN063971,1702.99
FCDO,CSC,28/06/2023,Scholar Stipend,Award Costs,Scholar,PIN063972,1236
FCDO,CSC,28/06/2023,Scholar Stipend,Award Costs,Scholar,PIN063973,3708
FCDO,CSC,28/06/2023,Scholar Stipend,Award Costs,Scholar,PIN063974,1218.23
FCDO,CSC,28/06/2023,Scholar Stipend,Award Costs,Scholar,PIN063975,3032
FCDO,CSC,28/06/2023,Scholar Stipend,Award Costs,Scholar,PIN063976,3708
FCDO,CSC,28/06/2023,Scholar Stipend,Award Costs,Scholar,PIN063977,3708
FCDO,CSC,28/06/2023,Scholar Stipend,Award Costs,Scholar,PIN063978,3708
FCDO,CSC,28/06/2023,Scholar Stipend,Award Costs,Scholar,PIN063979,3708
FCDO,CSC,28/06/2023,Scholar Stipend,Award Costs,Scholar,PIN063980,4548
FCDO,CSC,28/06/2023,Scholar Stipend,Award Costs,Scholar,PIN063981,3708
FCDO,CSC,28/06/2023,Scholar Stipend,Award Costs,Scholar,PIN063982,3708
FCDO,CSC,28/06/2023,Scholar Stipend,Award Costs,Scholar,PIN063983,2472
FCDO,CSC,28/06/2023,Scholar Stipend,Award Costs,Scholar,PIN063984,3708
FCDO,CSC,28/06/2023,Scholar Stipend,Award Costs,Scholar,PIN063985,3708
FCDO,CSC,28/06/2023,Scholar Stipend,Award Costs,Scholar,PIN063986,1804.51
FCDO,CSC,28/06/2023,Scholar Stipend,Award Costs,Scholar,PIN063987,3708
FCDO,CSC,28/06/2023,Scholar Stipend,Award Costs,Scholar,PIN063988,3708
FCDO,CSC,28/06/2023,Scholar Stipend,Award Costs,Scholar,PIN063989,3708
FCDO,CSC,28/06/2023,Scholar Stipend,Award Costs,Scholar,PIN063990,3708
FCDO,CSC,28/06/2023,Scholar Stipend,Award Costs,Scholar,PIN063991,2472
FCDO,CSC,28/06/2023,Scholar Stipend,Award Costs,Scholar,PIN063992,3708
FCDO,CSC,28/06/2023,Scholar Stipend,Award Costs,Scholar,PIN063993,1854
FCDO,CSC,28/06/2023,Scholar Stipend,Award Costs,Scholar,PIN063994,3708
FCDO,CSC,28/06/2023,Scholar Stipend,Award Costs,Scholar,PIN063995,3708
FCDO,CSC,28/06/2023,Scholar Stipend,Award Costs,Scholar,PIN063996,3708
FCDO,CSC,28/06/2023,Scholar Stipend,Award Costs,Scholar,PIN063997,3708
FCDO,CSC,28/06/2023,Scholar Stipend,Award Costs,Scholar,PIN063998,2472
FCDO,CSC,28/06/2023,Scholar Stipend,Award Costs,Scholar,PIN063999,3708
FCDO,CSC,28/06/2023,Scholar Stipend,Award Costs,Scholar,PIN064000,3708
FCDO,CSC,28/06/2023,Scholar Stipend,Award Costs,Scholar,PIN064001,2837.47
FCDO,CSC,28/06/2023,Scholar Stipend,Award Costs,Scholar,PIN064002,1854
FCDO,CSC,28/06/2023,Scholar Stipend,Award Costs,Scholar,PIN064003,3708
FCDO,CSC,28/06/2023,Scholar Stipend,Award Costs,Scholar,PIN064004,3708
FCDO,CSC,28/06/2023,Scholar Stipend,Award Costs,Scholar,PIN064005,2472
FCDO,CSC,28/06/2023,Scholar Stipend,Award Costs,Scholar,PIN064006,1642.08
FCDO,CSC,28/06/2023,Scholar Stipend,Award Costs,Scholar,PIN064007,2472
FCDO,CSC,28/06/2023,Scholar Stipend,Award Costs,Scholar,PIN064008,3708
FCDO,CSC,28/06/2023,Scholar Stipend,Award Costs,Scholar,PIN064009,4548
FCDO,CSC,28/06/2023,Scholar Stipend,Award Costs,Scholar,PIN064010,2472
FCDO,CSC,28/06/2023,Scholar Stipend,Award Costs,Scholar,PIN064011,3708
FCDO,CSC,28/06/2023,Scholar Stipend,Award Costs,Scholar,PIN064012,3210.14
FCDO,CSC,28/06/2023,Scholar Stipend,Award Costs,Scholar,PIN064013,2472
FCDO,CSC,28/06/2023,Scholar Stipend,Award Costs,Scholar,PIN064014,3708
FCDO,CSC,28/06/2023,Scholar Stipend,Award Costs,Scholar,PIN064015,1236
FCDO,CSC,28/06/2023,Scholar Stipend,Award Costs,Scholar,PIN064016,3032
FCDO,CSC,28/06/2023,Scholar Stipend,Award Costs,Scholar,PIN064017,4548
FCDO,CSC,28/06/2023,Scholar Stipend,Award Costs,Scholar,PIN064018,3708
FCDO,CSC,28/06/2023,Scholar Stipend,Award Costs,Scholar,PIN064019,3708
FCDO,CSC,28/06/2023,Scholar Stipend,Award Costs,Scholar,PIN064020,3708
FCDO,CSC,28/06/2023,Scholar Stipend,Award Costs,Scholar,PIN064021,3032
FCDO,CSC,28/06/2023,Scholar Stipend,Award Costs,Scholar,PIN064022,2472
FCDO,CSC,28/06/2023,Scholar Stipend,Award Costs,Scholar,PIN064023,3708
FCDO,CSC,28/06/2023,Scholar Stipend,Award Costs,Scholar,PIN064024,3708
FCDO,CSC,28/06/2023,Scholar Stipend,Award Costs,Scholar,PIN064025,4548
FCDO,CSC,28/06/2023,Scholar Stipend,Award Costs,Scholar,PIN064026,3708
FCDO,CSC,28/06/2023,Scholar Stipend,Award Costs,Scholar,PIN064027,3708
FCDO,CSC,28/06/2023,Scholar Stipend,Award Costs,Scholar,PIN064028,1236
FCDO,CSC,28/06/2023,Scholar Stipend,Award Costs,Scholar,PIN064029,3708
FCDO,CSC,28/06/2023,Scholar Stipend,Award Costs,Scholar,PIN064030,3708
FCDO,CSC,28/06/2023,Scholar Stipend,Award Costs,Scholar,PIN064031,3708
FCDO,CSC,28/06/2023,Scholar Stipend,Award Costs,Scholar,PIN064032,1854
FCDO,CSC,28/06/2023,Scholar Stipend,Award Costs,Scholar,PIN064033,3708
FCDO,CSC,28/06/2023,Scholar Stipend,Award Costs,Scholar,PIN064034,4548
FCDO,CSC,28/06/2023,Scholar Stipend,Award Costs,Scholar,PIN064035,3708
FCDO,CSC,28/06/2023,Scholar Stipend,Award Costs,Scholar,PIN064036,1621.77
FCDO,CSC,28/06/2023,Scholar Stipend,Award Costs,Scholar,PIN064037,3708
FCDO,CSC,28/06/2023,Scholar Stipend,Award Costs,Scholar,PIN064038,3708
FCDO,CSC,28/06/2023,Scholar Stipend,Award Costs,Scholar,PIN064039,3708
FCDO,CSC,28/06/2023,Scholar Stipend,Award Costs,Scholar,PIN064040,2472
FCDO,CSC,28/06/2023,Scholar Stipend,Award Costs,Scholar,PIN064041,1236
FCDO,CSC,28/06/2023,Scholar Stipend,Award Costs,Scholar,PIN064042,2472
FCDO,CSC,28/06/2023,Scholar Stipend,Award Costs,Scholar,PIN064043,3708
FCDO,CSC,28/06/2023,Scholar Stipend,Award Costs,Scholar,PIN064044,2238.2
FCDO,CSC,28/06/2023,Scholar Stipend,Award Costs,Scholar,PIN064045,4227.37
FCDO,CSC,28/06/2023,Scholar Stipend,Award Costs,Scholar,PIN064046,3032
FCDO,CSC,28/06/2023,Scholar Stipend,Award Costs,Scholar,PIN064047,3708
FCDO,CSC,28/06/2023,Scholar Stipend,Award Costs,Scholar,PIN064048,3708
FCDO,CSC,28/06/2023,Scholar Stipend,Award Costs,Scholar,PIN064049,3708
FCDO,CSC,28/06/2023,Scholar Stipend,Award Costs,Scholar,PIN064050,3708
FCDO,CSC,28/06/2023,Scholar Stipend,Award Costs,Scholar,PIN064051,3708
FCDO,CSC,28/06/2023,Scholar Stipend,Award Costs,Scholar,PIN064052,3708
FCDO,CSC,28/06/2023,Scholar Stipend,Award Costs,Scholar,PIN064053,3708
FCDO,CSC,28/06/2023,Scholar Stipend,Award Costs,Scholar,PIN064054,2472
FCDO,CSC,28/06/2023,Scholar Stipend,Award Costs,Scholar,PIN064055,3708
FCDO,CSC,28/06/2023,Scholar Stipend,Award Costs,Scholar,PIN064056,3708
FCDO,CSC,28/06/2023,Scholar Stipend,Award Costs,Scholar,PIN064057,3032
FCDO,CSC,28/06/2023,Scholar Stipend,Award Costs,Scholar,PIN064058,3708
FCDO,CSC,28/06/2023,Scholar Stipend,Award Costs,Scholar,PIN064059,3708
FCDO,CSC,28/06/2023,Scholar Stipend,Award Costs,Scholar,PIN064060,4277.17
FCDO,CSC,28/06/2023,Scholar Stipend,Award Costs,Scholar,PIN064061,4548
FCDO,CSC,28/06/2023,Scholar Stipend,Award Costs,Scholar,PIN064062,3708
FCDO,CSC,28/06/2023,Scholar Stipend,Award Costs,Scholar,PIN064063,3708
FCDO,CSC,28/06/2023,Scholar Stipend,Award Costs,Scholar,PIN064064,4029.24
FCDO,CSC,28/06/2023,Scholar Stipend,Award Costs,Scholar,PIN064065,4548
FCDO,CSC,28/06/2023,Scholar Stipend,Award Costs,Scholar,PIN064066,3708
FCDO,CSC,28/06/2023,Scholar Stipend,Award Costs,Scholar,PIN064067,3708
FCDO,CSC,28/06/2023,Scholar Stipend,Award Costs,Scholar,PIN064068,2472
FCDO,CSC,28/06/2023,Scholar Stipend,Award Costs,Scholar,PIN064069,2959.29
FCDO,CSC,28/06/2023,Scholar Stipend,Award Costs,Scholar,PIN064070,3708
FCDO,CSC,28/06/2023,Scholar Stipend,Award Costs,Scholar,PIN064071,3708
FCDO,CSC,28/06/2023,Scholar Stipend,Award Costs,Scholar,PIN064072,3708
FCDO,CSC,28/06/2023,Scholar Stipend,Award Costs,Scholar,PIN064073,3708
FCDO,CSC,28/06/2023,Scholar Stipend,Award Costs,Scholar,PIN064074,1854
FCDO,CSC,28/06/2023,Scholar Stipend,Award Costs,Scholar,PIN064075,1854
FCDO,CSC,28/06/2023,Scholar Stipend,Award Costs,Scholar,PIN064076,3708
FCDO,CSC,28/06/2023,Scholar Stipend,Award Costs,Scholar,PIN064077,3708
FCDO,CSC,28/06/2023,Scholar Stipend,Award Costs,Scholar,PIN064078,2472
FCDO,CSC,28/06/2023,Scholar Stipend,Award Costs,Scholar,PIN064079,3708
FCDO,CSC,28/06/2023,Scholar Stipend,Award Costs,Scholar,PIN064080,3708
FCDO,CSC,28/06/2023,Scholar Stipend,Award Costs,Scholar,PIN064081,2472
FCDO,CSC,28/06/2023,Scholar Stipend,Award Costs,Scholar,PIN064082,3708
FCDO,CSC,28/06/2023,Scholar Stipend,Award Costs,Scholar,PIN064083,4548
FCDO,CSC,28/06/2023,Scholar Stipend,Award Costs,Scholar,PIN064084,3708
FCDO,CSC,28/06/2023,Scholar Stipend,Award Costs,Scholar,PIN064085,4548
FCDO,CSC,28/06/2023,Scholar Stipend,Award Costs,Scholar,PIN064086,2472
FCDO,CSC,28/06/2023,Scholar Stipend,Award Costs,Scholar,PIN064087,3708
FCDO,CSC,28/06/2023,Scholar Stipend,Award Costs,Scholar,PIN064088,4548
FCDO,CSC,28/06/2023,Scholar Stipend,Award Costs,Scholar,PIN064089,3708
FCDO,CSC,28/06/2023,Scholar Stipend,Award Costs,Scholar,PIN064090,3708
FCDO,CSC,28/06/2023,Scholar Stipend,Award Costs,Scholar,PIN064091,3708
FCDO,CSC,28/06/2023,Scholar Stipend,Award Costs,Scholar,PIN064092,3708
FCDO,CSC,28/06/2023,Scholar Stipend,Award Costs,Scholar,PIN064093,3708
FCDO,CSC,28/06/2023,Scholar Stipend,Award Costs,Scholar,PIN064094,3708
FCDO,CSC,28/06/2023,Scholar Stipend,Award Costs,Scholar,PIN064095,3708
FCDO,CSC,28/06/2023,Scholar Stipend,Award Costs,Scholar,PIN064096,3708
FCDO,CSC,28/06/2023,Scholar Stipend,Award Costs,Scholar,PIN064097,3708
FCDO,CSC,28/06/2023,Scholar Stipend,Award Costs,Scholar,PIN064098,4277.17
FCDO,CSC,28/06/2023,Scholar Stipend,Award Costs,Scholar,PIN064099,3708
FCDO,CSC,28/06/2023,Scholar Stipend,Award Costs,Scholar,PIN064100,3708
FCDO,CSC,28/06/2023,Scholar Stipend,Award Costs,Scholar,PIN064101,3032
FCDO,CSC,28/06/2023,Scholar Stipend,Award Costs,Scholar,PIN064102,4548
FCDO,CSC,28/06/2023,Scholar Stipend,Award Costs,Scholar,PIN064103,3708
FCDO,CSC,28/06/2023,Scholar Stipend,Award Costs,Scholar,PIN064104,3708
FCDO,CSC,28/06/2023,Scholar Stipend,Award Costs,Scholar,PIN064105,3708
FCDO,CSC,28/06/2023,Scholar Stipend,Award Costs,Scholar,PIN064106,3568.41
FCDO,CSC,28/06/2023,Scholar Stipend,Award Costs,Scholar,PIN064107,1236
FCDO,CSC,28/06/2023,Scholar Stipend,Award Costs,Scholar,PIN064108,3032
FCDO,CSC,28/06/2023,Scholar Stipend,Award Costs,Scholar,PIN064109,3708
FCDO,CSC,28/06/2023,Scholar Stipend,Award Costs,Scholar,PIN064110,3708
FCDO,CSC,28/06/2023,Scholar Stipend,Award Costs,Scholar,PIN064111,2472
FCDO,CSC,28/06/2023,Scholar Stipend,Award Costs,Scholar,PIN064112,3708
FCDO,CSC,28/06/2023,Scholar Stipend,Award Costs,Scholar,PIN064113,3708
FCDO,CSC,28/06/2023,Scholar Stipend,Award Costs,Scholar,PIN064114,3708
FCDO,CSC,28/06/2023,Scholar Stipend,Award Costs,Scholar,PIN064115,3708
FCDO,CSC,28/06/2023,Scholar Stipend,Award Costs,Scholar,PIN064116,2472
FCDO,CSC,28/06/2023,Scholar Stipend,Award Costs,Scholar,PIN064117,3708
FCDO,CSC,28/06/2023,Scholar Stipend,Award Costs,Scholar,PIN064118,4548
FCDO,CSC,28/06/2023,Scholar Stipend,Award Costs,Scholar,PIN064119,3708
FCDO,CSC,28/06/2023,Scholar Stipend,Award Costs,Scholar,PIN064120,3708
FCDO,CSC,28/06/2023,Scholar Stipend,Award Costs,Scholar,PIN064121,3708
FCDO,CSC,28/06/2023,Scholar Stipend,Award Costs,Scholar,PIN064122,2472
FCDO,CSC,28/06/2023,Scholar Stipend,Award Costs,Scholar,PIN064123,1236
FCDO,CSC,28/06/2023,Scholar Stipend,Award Costs,Scholar,PIN064124,3708
FCDO,CSC,28/06/2023,Scholar Stipend,Award Costs,Scholar,PIN064125,3708
FCDO,CSC,28/06/2023,Scholar Stipend,Award Costs,Scholar,PIN064126,3708
FCDO,CSC,28/06/2023,Scholar Stipend,Award Costs,Scholar,PIN064127,4548
FCDO,CSC,28/06/2023,Scholar Stipend,Award Costs,Scholar,PIN064128,3708
FCDO,CSC,28/06/2023,Scholar Stipend,Award Costs,Scholar,PIN064129,3708
FCDO,CSC,28/06/2023,Scholar Stipend,Award Costs,Scholar,PIN064130,3568.41
FCDO,CSC,28/06/2023,Scholar Stipend,Award Costs,Scholar,PIN064131,3708
FCDO,CSC,28/06/2023,Scholar Stipend,Award Costs,Scholar,PIN064132,3708
FCDO,CSC,28/06/2023,Scholar Stipend,Award Costs,Scholar,PIN064133,3708
FCDO,CSC,28/06/2023,Scholar Stipend,Award Costs,Scholar,PIN064134,3708
FCDO,CSC,28/06/2023,Scholar Stipend,Award Costs,Scholar,PIN064135,3708
FCDO,CSC,28/06/2023,Scholar Stipend,Award Costs,Scholar,PIN064136,3708
FCDO,CSC,28/06/2023,Scholar Stipend,Award Costs,Scholar,PIN064137,2756.25
FCDO,CSC,28/06/2023,Scholar Stipend,Award Costs,Scholar,PIN064138,3708
FCDO,CSC,28/06/2023,Scholar Stipend,Award Costs,Scholar,PIN064139,3708
FCDO,CSC,28/06/2023,Scholar Stipend,Award Costs,Scholar,PIN064140,4548
FCDO,CSC,28/06/2023,Scholar Stipend,Award Costs,Scholar,PIN064141,3708
FCDO,CSC,28/06/2023,Scholar Stipend,Award Costs,Scholar,PIN064142,1516
FCDO,CSC,28/06/2023,Scholar Stipend,Award Costs,Scholar,PIN064143,1236
FCDO,CSC,28/06/2023,Scholar Stipend,Award Costs,Scholar,PIN064144,1236
FCDO,CSC,28/06/2023,Scholar Stipend,Award Costs,Scholar,PIN064145,3708
FCDO,CSC,28/06/2023,Scholar Stipend,Award Costs,Scholar,PIN064146,3708
FCDO,CSC,28/06/2023,Scholar Stipend,Award Costs,Scholar,PIN064147,3708
FCDO,CSC,28/06/2023,Scholar Stipend,Award Costs,Scholar,PIN064148,3708
FCDO,CSC,28/06/2023,Scholar Stipend,Award Costs,Scholar,PIN064149,3708
FCDO,CSC,28/06/2023,Scholar Stipend,Award Costs,Scholar,PIN064150,1854
FCDO,CSC,28/06/2023,Scholar Stipend,Award Costs,Scholar,PIN064151,2274
FCDO,CSC,28/06/2023,Scholar Stipend,Award Costs,Scholar,PIN064152,3032
FCDO,CSC,28/06/2023,Scholar Stipend,Award Costs,Scholar,PIN064153,3708
FCDO,CSC,28/06/2023,Scholar Stipend,Award Costs,Scholar,PIN064154,3708
FCDO,CSC,28/06/2023,Scholar Stipend,Award Costs,Scholar,PIN064155,3708
FCDO,CSC,28/06/2023,Scholar Stipend,Award Costs,Scholar,PIN064156,2878.08
FCDO,CSC,28/06/2023,Scholar Stipend,Award Costs,Scholar,PIN064157,4548
FCDO,CSC,28/06/2023,Scholar Stipend,Award Costs,Scholar,PIN064158,3708
FCDO,CSC,28/06/2023,Scholar Stipend,Award Costs,Scholar,PIN064159,3708
FCDO,CSC,28/06/2023,Scholar Stipend,Award Costs,Scholar,PIN064160,758
FCDO,CSC,28/06/2023,Scholar Stipend,Award Costs,Scholar,PIN064161,4548
FCDO,CSC,28/06/2023,Scholar Stipend,Award Costs,Scholar,PIN064162,1516
FCDO,CSC,28/06/2023,Scholar Stipend,Award Costs,Scholar,PIN064163,1854
FCDO,CSC,28/06/2023,Scholar Stipend,Award Costs,Scholar,PIN064164,4548
FCDO,CSC,28/06/2023,Scholar Stipend,Award Costs,Scholar,PIN064165,2756.27
FCDO,CSC,28/06/2023,Scholar Stipend,Award Costs,Scholar,PIN064166,4548
FCDO,CSC,28/06/2023,Scholar Stipend,Award Costs,Scholar,PIN064167,3708
FCDO,CSC,28/06/2023,Scholar Stipend,Award Costs,Scholar,PIN064168,3708
FCDO,CSC,28/06/2023,Scholar Stipend,Award Costs,Scholar,PIN064169,3708
FCDO,CSC,28/06/2023,Scholar Stipend,Award Costs,Scholar,PIN064170,3708
FCDO,CSC,28/06/2023,Scholar Stipend,Award Costs,Scholar,PIN064171,1236
FCDO,CSC,28/06/2023,Scholar Stipend,Award Costs,Scholar,PIN064172,3708
FCDO,CSC,28/06/2023,Scholar Stipend,Award Costs,Scholar,PIN064173,3708
FCDO,CSC,28/06/2023,Scholar Stipend,Award Costs,Scholar,PIN064174,2274
FCDO,CSC,28/06/2023,Scholar Stipend,Award Costs,Scholar,PIN064175,1236
FCDO,CSC,28/06/2023,Scholar Stipend,Award Costs,Scholar,PIN064176,3708
FCDO,CSC,28/06/2023,Scholar Stipend,Award Costs,Scholar,PIN064177,3708
FCDO,CSC,28/06/2023,Scholar Stipend,Award Costs,Scholar,PIN064178,1236
FCDO,CSC,28/06/2023,Scholar Stipend,Award Costs,Scholar,PIN064179,1236
FCDO,CSC,28/06/2023,Scholar Stipend,Award Costs,Scholar,PIN064180,3708
FCDO,CSC,28/06/2023,Scholar Stipend,Award Costs,Scholar,PIN064181,3708
FCDO,CSC,28/06/2023,Scholar Stipend,Award Costs,Scholar,PIN064182,3527.8
FCDO,CSC,28/06/2023,Scholar Stipend,Award Costs,Scholar,PIN064183,3708
FCDO,CSC,28/06/2023,Scholar Stipend,Award Costs,Scholar,PIN064184,3708
FCDO,CSC,28/06/2023,Scholar Stipend,Award Costs,Scholar,PIN064185,3081.12
FCDO,CSC,28/06/2023,Scholar Stipend,Award Costs,Scholar,PIN064186,3708
FCDO,CSC,28/06/2023,Scholar Stipend,Award Costs,Scholar,PIN064187,3779.15
FCDO,CSC,28/06/2023,Scholar Stipend,Award Costs,Scholar,PIN064188,3032
FCDO,CSC,28/06/2023,Scholar Stipend,Award Costs,Scholar,PIN064189,1854
FCDO,CSC,28/06/2023,Scholar Stipend,Award Costs,Scholar,PIN064190,3708
FCDO,CSC,28/06/2023,Scholar Stipend,Award Costs,Scholar,PIN064191,3032
FCDO,CSC,28/06/2023,Scholar Stipend,Award Costs,Scholar,PIN064192,3708
FCDO,CSC,28/06/2023,Scholar Stipend,Award Costs,Scholar,PIN064193,3708
FCDO,CSC,28/06/2023,Scholar Stipend,Award Costs,Scholar,PIN064194,3708
FCDO,CSC,28/06/2023,Scholar Stipend,Award Costs,Scholar,PIN064195,3032
FCDO,CSC,28/06/2023,Scholar Stipend,Award Costs,Scholar,PIN064196,3708
FCDO,CSC,28/06/2023,Scholar Stipend,Award Costs,Scholar,PIN064197,3708
FCDO,CSC,28/06/2023,Scholar Stipend,Award Costs,Scholar,PIN064198,3708
FCDO,CSC,28/06/2023,Scholar Stipend,Award Costs,Scholar,PIN064199,3708
FCDO,CSC,28/06/2023,Scholar Stipend,Award Costs,Scholar,PIN064200,1854
FCDO,CSC,28/06/2023,Scholar Stipend,Award Costs,Scholar,PIN064201,3202.94
FCDO,CSC,28/06/2023,Scholar Stipend,Award Costs,Scholar,PIN064202,3708
FCDO,CSC,28/06/2023,Scholar Stipend,Award Costs,Scholar,PIN064203,3708
FCDO,CSC,28/06/2023,Scholar Stipend,Award Costs,Scholar,PIN064204,3708
FCDO,CSC,28/06/2023,Scholar Stipend,Award Costs,Scholar,PIN064205,3708
FCDO,CSC,28/06/2023,Scholar Stipend,Award Costs,Scholar,PIN064206,4548
FCDO,CSC,28/06/2023,Scholar Stipend,Award Costs,Scholar,PIN064207,3708
FCDO,CSC,28/06/2023,Scholar Stipend,Award Costs,Scholar,PIN064208,2472
FCDO,CSC,28/06/2023,Scholar Stipend,Award Costs,Scholar,PIN064209,3708
FCDO,CSC,28/06/2023,Scholar Stipend,Award Costs,Scholar,PIN064210,3708
FCDO,CSC,28/06/2023,Scholar Stipend,Award Costs,Scholar,PIN064211,1236
FCDO,CSC,28/06/2023,Scholar Stipend,Award Costs,Scholar,PIN064212,3708
FCDO,CSC,28/06/2023,Scholar Stipend,Award Costs,Scholar,PIN064213,3708
FCDO,CSC,28/06/2023,Scholar Stipend,Award Costs,Scholar,PIN064214,2472
FCDO,CSC,28/06/2023,Scholar Stipend,Award Costs,Scholar,PIN064215,3708
FCDO,CSC,28/06/2023,Scholar Stipend,Award Costs,Scholar,PIN064216,771.55
FCDO,CSC,28/06/2023,Scholar Stipend,Award Costs,Scholar,PIN064217,3708
FCDO,CSC,28/06/2023,Scholar Stipend,Award Costs,Scholar,PIN064218,2472
FCDO,CSC,28/06/2023,Scholar Stipend,Award Costs,Scholar,PIN064219,3708
FCDO,CSC,28/06/2023,Scholar Stipend,Award Costs,Scholar,PIN064220,4548
FCDO,CSC,28/06/2023,Scholar Stipend,Award Costs,Scholar,PIN064221,3708
FCDO,CSC,28/06/2023,Scholar Stipend,Award Costs,Scholar,PIN064222,2263.1
FCDO,CSC,28/06/2023,Scholar Stipend,Award Costs,Scholar,PIN064223,3708
FCDO,CSC,28/06/2023,Scholar Stipend,Award Costs,Scholar,PIN064224,3708
FCDO,CSC,28/06/2023,Scholar Stipend,Award Costs,Scholar,PIN064225,3708
FCDO,CSC,28/06/2023,Scholar Stipend,Award Costs,Scholar,PIN064226,3708
FCDO,CSC,28/06/2023,Scholar Stipend,Award Costs,Scholar,PIN064227,2472
FCDO,CSC,28/06/2023,Scholar Stipend,Award Costs,Scholar,PIN064228,1516
FCDO,CSC,28/06/2023,Scholar Stipend,Award Costs,Scholar,PIN064229,4548
FCDO,CSC,28/06/2023,Scholar Stipend,Award Costs,Scholar,PIN064230,3708
FCDO,CSC,28/06/2023,Scholar Stipend,Award Costs,Scholar,PIN064231,3081.81
FCDO,CSC,28/06/2023,Scholar Stipend,Award Costs,Scholar,PIN064232,2472
FCDO,CSC,28/06/2023,Scholar Stipend,Award Costs,Scholar,PIN064233,3708
FCDO,CSC,28/06/2023,Scholar Stipend,Award Costs,Scholar,PIN064234,3708
FCDO,CSC,28/06/2023,Scholar Stipend,Award Costs,Scholar,PIN064235,3708
FCDO,CSC,28/06/2023,Scholar Stipend,Award Costs,Scholar,PIN064236,3708
FCDO,CSC,28/06/2023,Scholar Stipend,Award Costs,Scholar,PIN064237,3708
FCDO,CSC,28/06/2023,Scholar Stipend,Award Costs,Scholar,PIN064238,4548
FCDO,CSC,28/06/2023,Scholar Stipend,Award Costs,Scholar,PIN064239,2472
FCDO,CSC,28/06/2023,Scholar Stipend,Award Costs,Scholar,PIN064240,3708
FCDO,CSC,28/06/2023,Scholar Stipend,Award Costs,Scholar,PIN064241,3032
FCDO,CSC,28/06/2023,Scholar Stipend,Award Costs,Scholar,PIN064242,4548
FCDO,CSC,28/06/2023,Scholar Stipend,Award Costs,Scholar,PIN064243,3708
FCDO,CSC,28/06/2023,Scholar Stipend,Award Costs,Scholar,PIN064244,3708
FCDO,CSC,28/06/2023,Scholar Stipend,Award Costs,Scholar,PIN064245,3708
FCDO,CSC,28/06/2023,Scholar Stipend,Award Costs,Scholar,PIN064246,4548
FCDO,CSC,28/06/2023,Scholar Stipend,Award Costs,Scholar,PIN064247,3708
FCDO,CSC,28/06/2023,Scholar Stipend,Award Costs,Scholar,PIN064248,3708
FCDO,CSC,28/06/2023,Scholar Stipend,Award Costs,Scholar,PIN064249,4548
FCDO,CSC,28/06/2023,Scholar Stipend,Award Costs,Scholar,PIN064250,3708
FCDO,CSC,28/06/2023,Scholar Stipend,Award Costs,Scholar,PIN064251,4548
FCDO,CSC,28/06/2023,Scholar Stipend,Award Costs,Scholar,PIN064252,3032
FCDO,CSC,28/06/2023,Scholar Stipend,Award Costs,Scholar,PIN064253,3032
FCDO,CSC,28/06/2023,Scholar Stipend,Award Costs,Scholar,PIN064254,1464
FCDO,CSC,28/06/2023,Scholar Stipend,Award Costs,Scholar,PIN064255,3708
FCDO,CSC,28/06/2023,Scholar Stipend,Award Costs,Scholar,PIN064256,3708
FCDO,CSC,28/06/2023,Scholar Stipend,Award Costs,Scholar,PIN064257,3708
FCDO,CSC,28/06/2023,Scholar Stipend,Award Costs,Scholar,PIN064258,2472
FCDO,CSC,28/06/2023,Scholar Stipend,Award Costs,Scholar,PIN064259,3708
FCDO,CSC,28/06/2023,Scholar Stipend,Award Costs,Scholar,PIN064260,3708
FCDO,CSC,28/06/2023,Scholar Stipend,Award Costs,Scholar,PIN064261,3032
FCDO,CSC,28/06/2023,Scholar Stipend,Award Costs,Scholar,PIN064262,2796.86
FCDO,CSC,28/06/2023,Scholar Stipend,Award Costs,Scholar,PIN064263,1854
FCDO,CSC,28/06/2023,Scholar Stipend,Award Costs,Scholar,PIN064264,3708
FCDO,CSC,28/06/2023,Scholar Stipend,Award Costs,Scholar,PIN064265,3708
FCDO,CSC,28/06/2023,Scholar Stipend,Award Costs,Scholar,PIN064266,3708
FCDO,CSC,28/06/2023,Scholar Stipend,Award Costs,Scholar,PIN064267,3708
FCDO,CSC,28/06/2023,Scholar Stipend,Award Costs,Scholar,PIN064268,3708
FCDO,CSC,28/06/2023,Scholar Stipend,Award Costs,Scholar,PIN064269,3708
FCDO,CSC,28/06/2023,Scholar Stipend,Award Costs,Scholar,PIN064270,4548
FCDO,CSC,28/06/2023,Scholar Stipend,Award Costs,Scholar,PIN064271,3708
FCDO,CSC,28/06/2023,Scholar Stipend,Award Costs,Scholar,PIN064272,3568.41
FCDO,CSC,28/06/2023,Scholar Stipend,Award Costs,Scholar,PIN064273,3032
FCDO,CSC,28/06/2023,Scholar Stipend,Award Costs,Scholar,PIN064274,2472
FCDO,CSC,28/06/2023,Scholar Stipend,Award Costs,Scholar,PIN064275,3708
FCDO,CSC,28/06/2023,Scholar Stipend,Award Costs,Scholar,PIN064276,3708
FCDO,CSC,28/06/2023,Scholar Stipend,Award Costs,Scholar,PIN064277,2472
FCDO,CSC,28/06/2023,Scholar Stipend,Award Costs,Scholar,PIN064278,3708
FCDO,CSC,28/06/2023,Scholar Stipend,Award Costs,Scholar,PIN064279,3708
FCDO,CSC,28/06/2023,Scholar Stipend,Award Costs,Scholar,PIN064280,3708
FCDO,CSC,28/06/2023,Scholar Stipend,Award Costs,Scholar,PIN064281,3708
FCDO,CSC,28/06/2023,Scholar Stipend,Award Costs,Scholar,PIN064282,3708
FCDO,CSC,28/06/2023,Scholar Stipend,Award Costs,Scholar,PIN064283,3708
FCDO,CSC,28/06/2023,Scholar Stipend,Award Costs,Scholar,PIN064284,1236
FCDO,CSC,28/06/2023,Scholar Stipend,Award Costs,Scholar,PIN064285,3708
FCDO,CSC,28/06/2023,Scholar Stipend,Award Costs,Scholar,PIN064286,2472
FCDO,CSC,28/06/2023,Scholar Stipend,Award Costs,Scholar,PIN064287,3708
FCDO,CSC,28/06/2023,Scholar Stipend,Award Costs,Scholar,PIN064288,2472
FCDO,CSC,28/06/2023,Scholar Stipend,Award Costs,Scholar,PIN064289,2472
FCDO,CSC,28/06/2023,Scholar Stipend,Award Costs,Scholar,PIN064290,3708
FCDO,CSC,28/06/2023,Scholar Stipend,Award Costs,Scholar,PIN064291,4548
FCDO,CSC,28/06/2023,Scholar Stipend,Award Costs,Scholar,PIN064292,3284.16
FCDO,CSC,28/06/2023,Scholar Stipend,Award Costs,Scholar,PIN064293,4548
FCDO,CSC,28/06/2023,Scholar Stipend,Award Costs,Scholar,PIN064294,3708
FCDO,CSC,28/06/2023,Scholar Stipend,Award Costs,Scholar,PIN064295,3708
FCDO,CSC,28/06/2023,Scholar Stipend,Award Costs,Scholar,PIN064296,3708
FCDO,CSC,28/06/2023,Scholar Stipend,Award Costs,Scholar,PIN064297,1642.08
FCDO,CSC,28/06/2023,Scholar Stipend,Award Costs,Scholar,PIN064298,3708
FCDO,CSC,28/06/2023,Scholar Stipend,Award Costs,Scholar,PIN064299,1854
FCDO,CSC,28/06/2023,Scholar Stipend,Award Costs,Scholar,PIN064300,3032
FCDO,CSC,28/06/2023,Scholar Stipend,Award Costs,Scholar,PIN064301,3708
FCDO,CSC,28/06/2023,Scholar Stipend,Award Costs,Scholar,PIN064302,3708
FCDO,CSC,28/06/2023,Scholar Stipend,Award Costs,Scholar,PIN064303,3708
FCDO,CSC,28/06/2023,Scholar Allowances,Award Costs,Scholar,PIN064304,933.98
FCDO,CSC,28/06/2023,Advances Repayments,Award Costs,Scholar,PIN064305,-900
FCDO,CSC,28/06/2023,Advances Repayments,Award Costs,Scholar,PIN064307,-700
FCDO,CSC,28/06/2023,Scholar Allowances,Award Costs,Scholar,PIN064308,798
FCDO,CSC,28/06/2023,Scholar Allowances,Award Costs,Scholar,PIN064309,1191
FCDO,CSC,28/06/2023,Scholar Allowances,Award Costs,Scholar,PIN064310,1191
FCDO,CSC,28/06/2023,Scholar Allowances,Award Costs,Scholar,PIN064311,798
FCDO,CSC,28/06/2023,Scholar Allowances,Award Costs,Scholar,PIN064312,1191
FCDO,CSC,28/06/2023,Scholar Allowances,Award Costs,Scholar,PIN064313,798
FCDO,CSC,28/06/2023,Scholar Allowances,Award Costs,Scholar,PIN064314,1584
FCDO,CSC,28/06/2023,Scholar Allowances,Award Costs,Scholar,PIN064315,798
FCDO,CSC,28/06/2023,Scholar Allowances,Award Costs,Scholar,PIN064316,1191
FCDO,CSC,28/06/2023,Scholar Allowances,Award Costs,Scholar,PIN064317,532
FCDO,CSC,28/06/2023,Scholar Allowances,Award Costs,Scholar,PIN064318,798
FCDO,CSC,28/06/2023,Scholar Allowances,Award Costs,Scholar,PIN064319,1584
FCDO,CSC,28/06/2023,Scholar Allowances,Award Costs,Scholar,PIN064320,798
FCDO,CSC,28/06/2023,Scholar Allowances,Award Costs,Scholar,PIN064321,1584
FCDO,CSC,28/06/2023,Scholar Allowances,Award Costs,Scholar,PIN064322,798
FCDO,CSC,28/06/2023,Scholar Allowances,Award Costs,Scholar,PIN064323,798
FCDO,CSC,28/06/2023,Scholar Allowances,Award Costs,Scholar,PIN064324,1191
FCDO,CSC,28/06/2023,Scholar Allowances,Award Costs,Scholar,PIN064325,1587
FCDO,CSC,28/06/2023,Scholar Allowances,Award Costs,Scholar,PIN064326,798
FCDO,CSC,28/06/2023,Scholar Allowances,Award Costs,Scholar,PIN064327,798
FCDO,CSC,28/06/2023,Scholar Allowances,Award Costs,Scholar,PIN064328,1980
FCDO,CSC,28/06/2023,Scholar Allowances,Award Costs,Scholar,PIN064329,1191
FCDO,CSC,28/06/2023,Scholar Allowances,Award Costs,Scholar,PIN064330,1587
FCDO,CSC,28/06/2023,Scholar Allowances,Award Costs,Scholar,PIN064331,1191
FCDO,CSC,28/06/2023,Scholar Allowances,Award Costs,Scholar,PIN064332,1584
FCDO,CSC,28/06/2023,Scholar Allowances,Award Costs,Scholar,PIN064333,1584
FCDO,CSC,28/06/2023,Scholar Allowances,Award Costs,Scholar,PIN064334,1191
FCDO,CSC,28/06/2023,Scholar Allowances,Award Costs,Scholar,PIN064335,798
FCDO,CSC,28/06/2023,Scholar Allowances,Award Costs,Scholar,PIN064336,1582
FCDO,CSC,28/06/2023,Scholar Allowances,Award Costs,Scholar,PIN064338,1191
FCDO,CSC,28/06/2023,Scholar Allowances,Award Costs,Scholar,PIN064339,1584
FCDO,CSC,28/06/2023,Scholar Allowances,Award Costs,Scholar,PIN064340,1191
FCDO,CSC,28/06/2023,Scholar Allowances,Award Costs,Scholar,PIN064341,1191
FCDO,CSC,28/06/2023,Scholar Allowances,Award Costs,Scholar,PIN064342,1584
FCDO,CSC,28/06/2023,Scholar Allowances,Award Costs,Scholar,PIN064343,1587
FCDO,CSC,28/06/2023,Scholar Allowances,Award Costs,Scholar,PIN064344,798
FCDO,CSC,28/06/2023,Scholar Allowances,Award Costs,Scholar,PIN064345,1584
FCDO,CSC,28/06/2023,Scholar Allowances,Award Costs,Scholar,PIN064346,1584
FCDO,CSC,28/06/2023,Scholar Allowances,Award Costs,Scholar,PIN064347,798
FCDO,CSC,28/06/2023,Scholar Allowances,Award Costs,Scholar,PIN064348,1191
FCDO,CSC,28/06/2023,Scholar Allowances,Award Costs,Scholar,PIN064349,1587
FCDO,CSC,28/06/2023,Scholar Allowances,Award Costs,Scholar,PIN064350,798
FCDO,CSC,28/06/2023,Scholar Allowances,Award Costs,Scholar,PIN064351,1191
FCDO,CSC,28/06/2023,Scholar Allowances,Award Costs,Scholar,PIN064352,1584
FCDO,CSC,28/06/2023,Scholar Allowances,Award Costs,Scholar,PIN064353,1191
FCDO,CSC,28/06/2023,Scholar Allowances,Award Costs,Scholar,PIN064354,798
FCDO,CSC,28/06/2023,Scholar Allowances,Award Costs,Scholar,PIN064355,798
FCDO,CSC,28/06/2023,Scholar Allowances,Award Costs,Scholar,PIN064356,1584
FCDO,CSC,28/06/2023,Scholar Allowances,Award Costs,Scholar,PIN064357,798
FCDO,CSC,28/06/2023,Scholar Allowances,Award Costs,Scholar,PIN064358,798
FCDO,CSC,28/06/2023,Scholar Allowances,Award Costs,Scholar,PIN064359,1587
FCDO,CSC,28/06/2023,Scholar Allowances,Award Costs,Scholar,PIN064360,798
FCDO,CSC,28/06/2023,Scholar Allowances,Award Costs,Scholar,PIN064361,798
FCDO,CSC,28/06/2023,Scholar Allowances,Award Costs,Scholar,PIN064363,1191
FCDO,CSC,28/06/2023,Scholar Allowances,Award Costs,Scholar,PIN064364,532
FCDO,CSC,28/06/2023,Scholar Allowances,Award Costs,Scholar,PIN064365,798
FCDO,CSC,28/06/2023,Scholar Allowances,Award Costs,Scholar,PIN064366,1191
FCDO,CSC,28/06/2023,Scholar Allowances,Award Costs,Scholar,PIN064367,1584
FCDO,CSC,28/06/2023,Scholar Allowances,Award Costs,Scholar,PIN064368,1058
FCDO,CSC,28/06/2023,Scholar Allowances,Award Costs,Scholar,PIN064369,798
FCDO,CSC,28/06/2023,Scholar Allowances,Award Costs,Scholar,PIN064370,1980
FCDO,CSC,28/06/2023,Scholar Allowances,Award Costs,Scholar,PIN064371,1191
FCDO,CSC,28/06/2023,Scholar Allowances,Award Costs,Scholar,PIN064372,798
FCDO,CSC,28/06/2023,Scholar Allowances,Award Costs,Scholar,PIN064373,798
FCDO,CSC,28/06/2023,Scholar Allowances,Award Costs,Scholar,PIN064374,1584
FCDO,CSC,28/06/2023,Scholar Allowances,Award Costs,Scholar,PIN064375,1587
FCDO,CSC,28/06/2023,Scholar Allowances,Award Costs,Scholar,PIN064376,798
FCDO,CSC,28/06/2023,Scholar Allowances,Award Costs,Scholar,PIN064377,1191
FCDO,CSC,28/06/2023,Scholar Allowances,Award Costs,Scholar,PIN064378,1584
FCDO,CSC,28/06/2023,Scholar Allowances,Award Costs,Scholar,PIN064380,798
FCDO,CSC,28/06/2023,Scholar Allowances,Award Costs,Scholar,PIN064381,1191
FCDO,CSC,28/06/2023,Scholar Allowances,Award Costs,Scholar,PIN064382,1191
FCDO,CSC,28/06/2023,Scholar Allowances,Award Costs,Scholar,PIN064383,798
FCDO,CSC,28/06/2023,Scholar Allowances,Award Costs,Scholar,PIN064384,798
FCDO,CSC,28/06/2023,Scholar Allowances,Award Costs,Scholar,PIN064385,1980
FCDO,CSC,28/06/2023,Scholar Allowances,Award Costs,Scholar,PIN064386,1584
FCDO,CSC,28/06/2023,Scholar Allowances,Award Costs,Scholar,PIN064387,1191
FCDO,CSC,28/06/2023,Scholar Allowances,Award Costs,Scholar,PIN064388,798
FCDO,CSC,28/06/2023,Scholar Allowances,Award Costs,Scholar,PIN064389,1587
FCDO,CSC,28/06/2023,Scholar Allowances,Award Costs,Scholar,PIN064390,1584
FCDO,CSC,28/06/2023,Scholar Allowances,Award Costs,Scholar,PIN064391,1191
FCDO,CSC,28/06/2023,Scholar Allowances,Award Costs,Scholar,PIN064393,798
FCDO,CSC,28/06/2023,Scholar Allowances,Award Costs,Scholar,PIN064394,1587
FCDO,CSC,28/06/2023,Scholar Allowances,Award Costs,Scholar,PIN064395,1584
FCDO,CSC,28/06/2023,Scholar Allowances,Award Costs,Scholar,PIN064396,798
FCDO,CSC,28/06/2023,Scholar Allowances,Award Costs,Scholar,PIN064397,798
FCDO,CSC,28/06/2023,Scholar Allowances,Award Costs,Scholar,PIN064398,798
FCDO,CSC,28/06/2023,Scholar Allowances,Award Costs,Scholar,PIN064399,798
FCDO,CSC,28/06/2023,Scholar Allowances,Award Costs,Scholar,PIN064400,798
FCDO,CSC,28/06/2023,Scholar Allowances,Award Costs,Scholar,PIN064401,798
FCDO,CSC,28/06/2023,Scholar Allowances,Award Costs,Scholar,PIN064402,798
FCDO,CSC,28/06/2023,Scholar Allowances,Award Costs,Scholar,PIN064403,798
FCDO,CSC,28/06/2023,Scholar Allowances,Award Costs,Scholar,PIN064404,798
FCDO,CSC,28/06/2023,Scholar Allowances,Award Costs,Scholar,PIN064405,532
FCDO,CSC,28/06/2023,Scholar Allowances,Award Costs,Scholar,PIN064406,798
FCDO,CSC,28/06/2023,Scholar Allowances,Award Costs,Scholar,PIN064407,798
FCDO,CSC,28/06/2023,Scholar Allowances,Award Costs,Scholar,PIN064408,798
FCDO,CSC,28/06/2023,Scholar Allowances,Award Costs,Scholar,PIN064409,798
FCDO,CSC,28/06/2023,Scholar Allowances,Award Costs,Scholar,PIN064410,798
FCDO,CSC,28/06/2023,Scholar Allowances,Award Costs,Scholar,PIN064411,798
FCDO,CSC,28/06/2023,Scholar Allowances,Award Costs,Scholar,PIN064412,798
FCDO,CSC,28/06/2023,Scholar Allowances,Award Costs,Scholar,PIN064413,798
FCDO,CSC,28/06/2023,Scholar Allowances,Award Costs,Scholar,PIN064414,798
FCDO,CSC,28/06/2023,Scholar Allowances,Award Costs,Scholar,PIN064415,798
FCDO,CSC,28/06/2023,Scholar Allowances,Award Costs,Scholar,PIN064416,798
FCDO,CSC,28/06/2023,Scholar Allowances,Award Costs,Scholar,PIN064417,798
FCDO,CSC,28/06/2023,Scholar Allowances,Award Costs,Scholar,PIN064418,798
FCDO,CSC,28/06/2023,Scholar Allowances,Award Costs,Scholar,PIN064420,798
FCDO,CSC,28/06/2023,Scholar Allowances,Award Costs,Scholar,PIN064421,798
FCDO,CSC,28/06/2023,Scholar Allowances,Award Costs,Scholar,PIN064422,798
FCDO,CSC,28/06/2023,Scholar Allowances,Award Costs,Scholar,PIN064423,798
FCDO,CSC,28/06/2023,Scholar Allowances,Award Costs,Scholar,PIN064424,798
FCDO,CSC,28/06/2023,Scholar Allowances,Award Costs,Scholar,PIN064425,671.82
FCDO,CSC,28/06/2023,Scholar Allowances,Award Costs,Scholar,PIN064426,798
FCDO,CSC,28/06/2023,Scholar Allowances,Award Costs,Scholar,PIN064427,798
FCDO,CSC,28/06/2023,Scholar Allowances,Award Costs,Scholar,PIN064428,798
FCDO,CSC,28/06/2023,Scholar Allowances,Award Costs,Scholar,PIN064429,798
FCDO,CSC,28/06/2023,Scholar Allowances,Award Costs,Scholar,PIN064430,798
FCDO,CSC,28/06/2023,Scholar Allowances,Award Costs,Scholar,PIN064431,798
FCDO,CSC,28/06/2023,Scholar Allowances,Award Costs,Scholar,PIN064432,798
FCDO,CSC,28/06/2023,Scholar Allowances,Award Costs,Scholar,PIN064433,798
FCDO,CSC,28/06/2023,Scholar Allowances,Award Costs,Scholar,PIN064434,798
FCDO,CSC,28/06/2023,Scholar Allowances,Award Costs,Scholar,PIN064435,798
FCDO,CSC,28/06/2023,Scholar Allowances,Award Costs,Scholar,PIN064436,798
FCDO,CSC,28/06/2023,Scholar Allowances,Award Costs,Scholar,PIN064438,798
FCDO,CSC,28/06/2023,Scholar Allowances,Award Costs,Scholar,PIN064439,798
FCDO,CSC,28/06/2023,Scholar Allowances,Award Costs,Scholar,PIN064441,798
FCDO,CSC,28/06/2023,Scholar Allowances,Award Costs,Scholar,PIN064442,532
FCDO,CSC,28/06/2023,Scholar Allowances,Award Costs,Scholar,PIN064444,798
FCDO,CSC,28/06/2023,Scholar Allowances,Award Costs,Scholar,PIN064445,798
FCDO,CSC,28/06/2023,Scholar Allowances,Award Costs,Scholar,PIN064446,798
FCDO,CSC,28/06/2023,Scholar Allowances,Award Costs,Scholar,PIN064447,798
FCDO,CSC,28/06/2023,Scholar Allowances,Award Costs,Scholar,PIN064448,798
FCDO,CSC,28/06/2023,Scholar Allowances,Award Costs,Scholar,PIN064449,798
FCDO,CSC,28/06/2023,Scholar Allowances,Award Costs,Scholar,PIN064450,798
FCDO,CSC,28/06/2023,Scholar Allowances,Award Costs,Scholar,PIN064451,798
FCDO,CSC,28/06/2023,Scholar Allowances,Award Costs,Scholar,PIN064452,798
FCDO,CSC,28/06/2023,Scholar Allowances,Award Costs,Scholar,PIN064453,798
FCDO,CSC,28/06/2023,Scholar Allowances,Award Costs,Scholar,PIN064454,798
FCDO,CSC,28/06/2023,Scholar Allowances,Award Costs,Scholar,PIN064458,798
FCDO,CSC,28/06/2023,Scholar Allowances,Award Costs,Scholar,PIN064459,798
FCDO,CSC,28/06/2023,Scholar Allowances,Award Costs,Scholar,PIN064460,798
FCDO,CSC,28/06/2023,Scholar Allowances,Award Costs,Scholar,PIN064461,798
FCDO,CSC,28/06/2023,Scholar Allowances,Award Costs,Scholar,PIN064462,798
FCDO,CSC,28/06/2023,Scholar Allowances,Award Costs,Scholar,PIN064463,798
FCDO,CSC,28/06/2023,Scholar Allowances,Award Costs,Scholar,PIN064464,798
FCDO,CSC,28/06/2023,Scholar Allowances,Award Costs,Scholar,PIN064465,798
FCDO,CSC,28/06/2023,Scholar Allowances,Award Costs,Scholar,PIN064466,798
FCDO,CSC,28/06/2023,Scholar Allowances,Award Costs,Scholar,PIN064468,798
FCDO,CSC,28/06/2023,Scholar Allowances,Award Costs,Scholar,PIN064469,798
FCDO,CSC,28/06/2023,Scholar Stipend,Award Costs,Scholar,PIN064472,507.59
FCDO,CSC,28/06/2023,Scholar Allowances,Award Costs,Scholar,PIN064475,1642.5
FCDO,CSC,28/06/2023,Scholar Allowances,Award Costs,Scholar,PIN064476,2037.5
FCDO,CSC,28/06/2023,Scholar Allowances,Award Costs,Scholar,PIN064477,1122.5
FCDO,CSC,28/06/2023,Scholar Allowances,Award Costs,Scholar,PIN064478,1500
FCDO,CSC,28/06/2023,Scholar Allowances,Award Costs,Scholar,PIN064479,1940
FCDO,CSC,28/06/2023,Scholar Allowances,Award Costs,Scholar,PIN064480,2037.5
FCDO,CSC,28/06/2023,Scholar Allowances,Award Costs,Scholar,PIN064481,2035
FCDO,CSC,28/06/2023,Scholar Allowances,Award Costs,Scholar,PIN064503,550
FCDO,CSC,28/06/2023,Scholar Allowances,Award Costs,Scholar,PIN064553,550
FCDO,CSC,28/06/2023,Scholar Stipend,Award Costs,MasterCard Prepaid Management Services Ltd,PIN064597,3708
FCDO,CSC,28/06/2023,Scholar Stipend,Award Costs,MasterCard Prepaid Management Services Ltd,PIN064597,3708
FCDO,CSC,28/06/2023,Scholar Stipend,Award Costs,MasterCard Prepaid Management Services Ltd,PIN064597,4548
FCDO,CSC,28/06/2023,Scholar Stipend,Award Costs,MasterCard Prepaid Management Services Ltd,PIN064597,3487.2
FCDO,CSC,28/06/2023,Scholar Stipend,Award Costs,MasterCard Prepaid Management Services Ltd,PIN064597,3708
FCDO,CSC,28/06/2023,Scholar Stipend,Award Costs,MasterCard Prepaid Management Services Ltd,PIN064597,3708
FCDO,CSC,28/06/2023,Scholar Stipend,Award Costs,MasterCard Prepaid Management Services Ltd,PIN064597,2796.86
FCDO,CSC,28/06/2023,Scholar Stipend,Award Costs,MasterCard Prepaid Management Services Ltd,PIN064597,4548
FCDO,CSC,28/06/2023,Scholar Stipend,Award Costs,MasterCard Prepaid Management Services Ltd,PIN064597,1095.75
FCDO,CSC,28/06/2023,Scholar Stipend,Award Costs,MasterCard Prepaid Management Services Ltd,PIN064597,4548
FCDO,CSC,28/06/2023,Scholar Stipend,Award Costs,Scholar,PIN064582,2472
FCDO,CSC,28/06/2023,Scholar Stipend,Award Costs,Scholar,PIN064583,3032
FCDO,CSC,28/06/2023,Scholar Stipend,Award Costs,Scholar,PIN064584,500
FCDO,CSC,28/06/2023,Scholar Allowances,Award Costs,Scholar,PIN064586,532
FCDO,CSC,28/06/2023,Scholar Allowances,Award Costs,Scholar,PIN064586,794
FCDO,CSC,28/06/2023,Scholar Stipend,Award Costs,Scholar,PIN064586,2472
FCDO,CSC,29/06/2023,Scholar Travel,Award Costs,Diversity Travel,PIN064596,1244.07
FCDO,CSC,29/06/2023,Scholar Travel,Award Costs,Diversity Travel,PIN064596,1650.5
FCDO,CSC,29/06/2023,Scholar Travel,Award Costs,Diversity Travel,PIN064596,815.71
FCDO,CSC,29/06/2023,Scholar Travel,Award Costs,Diversity Travel,PIN064596,864.22
FCDO,CSC,29/06/2023,Scholar Travel,Award Costs,Diversity Travel,PIN064596,1166.75
FCDO,CSC,29/06/2023,Scholar Travel,Award Costs,Diversity Travel,PIN064596,1547.02
FCDO,CSC,29/06/2023,Scholar Travel,Award Costs,Diversity Travel,PIN064596,855.54
FCDO,CSC,29/06/2023,Scholar Travel,Award Costs,Diversity Travel,PIN064596,1662.89
FCDO,CSC,29/06/2023,Scholar Travel,Award Costs,Diversity Travel,PIN064596,856.31
FCDO,CSC,29/06/2023,Scholar Travel,Award Costs,Diversity Travel,PIN064596,836.85
FCDO,CSC,29/06/2023,Scholar Travel,Award Costs,Diversity Travel,PIN064596,772.69
FCDO,CSC,29/06/2023,Scholar Travel,Award Costs,Diversity Travel,PIN064596,2055.68
FCDO,CSC,29/06/2023,Scholar Travel,Award Costs,Diversity Travel,PIN064596,1802.48
FCDO,CSC,29/06/2023,Scholar Travel,Award Costs,Diversity Travel,PIN064596,846.27
FCDO,CSC,29/06/2023,Scholar Travel,Award Costs,Diversity Travel,PIN064596,1311.6
FCDO,CSC,30/06/2023,Scholar Travel,Award Costs,Diversity Travel,PIN064595,776.41
FCDO,CSC,30/06/2023,Scholar Travel,Award Costs,Diversity Travel,PIN064595,904.54
FCDO,CSC,30/06/2023,Scholar Travel,Award Costs,Diversity Travel,PIN064595,890.19
FCDO,CSC,30/06/2023,Scholar Travel,Award Costs,Diversity Travel,PIN064595,896.69
FCDO,CSC,30/06/2023,Scholar Travel,Award Costs,Diversity Travel,PIN064595,887.96
FCDO,CSC,30/06/2023,Fieldwork Airfare,Award Costs,Diversity Travel,PIN064595,1302.94
FCDO,CSC,30/06/2023,Scholar Travel,Award Costs,Diversity Travel,PIN064595,520.63
FCDO,CSC,30/06/2023,Scholar Travel,Award Costs,Diversity Travel,PIN064595,974.93
FCDO,CSC,30/06/2023,Scholar Travel,Award Costs,Diversity Travel,PIN064595,734.91
FCDO,CSC,30/06/2023,Scholar Travel,Award Costs,Diversity Travel,PIN064595,904.84
FCDO,CSC,30/06/2023,Scholar Travel,Award Costs,Diversity Travel,PIN064595,1021.59
FCDO,CSC,30/06/2023,Scholar Travel,Award Costs,Diversity Travel,PIN064595,871.85
FCDO,CSC,30/06/2023,Scholar Travel,Award Costs,Diversity Travel,PIN064595,847.08
FCDO,CSC,30/06/2023,Scholar Travel,Award Costs,Diversity Travel,PIN064595,684.71
FCDO,CSC,30/06/2023,Scholar Travel,Award Costs,Diversity Travel,PIN064595,899.37
FCDO,CSC,30/06/2023,Scholar Allowances,Award Costs,Scholar,PIN064589,600
FCDO,CSC,30/06/2023,Secretariat Service Provision,Programme Costs,Scholar,PIN064598,6401.24
FCDO,CSC,30/06/2023,Secretariat Service Provision,Programme Costs,Scholar,PIN064599,3849.85
FCDO,CSC,23/06/2023,Scholar Engagement,Programme Costs,Scholar,PIN064601,1140.65
FCDO,CSC,07/06/2023,Secretariat Service Provision,Programme Costs,Association of Commonwealth Univs,NOM001261 Deleted,4472.03
